[Event "Titled Tuesday Blitz March 21 Early 2023"]
[White "Mirzanurov, Bulat"]
[Black "Fernandez Guillen, Ernesto J."]
[WhiteFideId "4184521"]
[BlackFideId "3512428"]
[WhiteElo "2019"]
[BlackElo "2423"]
[Result "0-1"]
[Round "01"]
[TimeControl "180+2"]
[Date "2023.03.21"]
[WhiteClock "0:01:00"]
[BlackClock "0:02:01"]

1. e4 {[%clk 0:02:58]}  e5 {[%clk 0:03:00]} 2. Nf3 {[%clk 0:02:56]}  Nc6 {[%clk 0:03:00]} 3. Bb5 {[%clk 0:02:55]}  f5 {[%clk 0:03:01]} 4. Nc3 {[%clk 0:02:54]}  fxe4 {[%clk 0:03:00]} 5. Nxe4 {[%clk 0:02:55]}  d5 {[%clk 0:03:01]} 6. Ng3 {[%clk 0:02:55]}  Bd6 {[%clk 0:02:44]} 7. d4 {[%clk 0:02:50]}  e4 {[%clk 0:02:44]} 8. Ne5 {[%clk 0:02:48]}  Ne7 {[%clk 0:02:35]} 9. O-O {[%clk 0:02:40]}  O-O {[%clk 0:02:33]} 10. Nxc6 {[%clk 0:02:38]}  bxc6 {[%clk 0:02:32]} 11. Ba4 {[%clk 0:02:31]}  Rb8 {[%clk 0:02:23]} 12. c3 {[%clk 0:02:26]}  Kh8 {[%clk 0:02:20]} 13. Bg5 {[%clk 0:02:19]}  Bd7 {[%clk 0:02:17]} 14. Bb3 {[%clk 0:02:08]}  Qe8 {[%clk 0:02:16]} 15. Be3 {[%clk 0:01:53]}  Nf5 {[%clk 0:02:16]} 16. Nxf5 {[%clk 0:01:49]}  Bxf5 {[%clk 0:02:15]} 17. Rb1 {[%clk 0:01:42]}  Qg6 {[%clk 0:02:13]} 18. Ba4 {[%clk 0:01:28]}  Bh3 {[%clk 0:02:10]} 19. g3 {[%clk 0:01:28]}  Bg4 {[%clk 0:02:11]} 20. Qe1 {[%clk 0:01:24]}  Bf3 {[%clk 0:02:09]} 21. Bxc6 {[%clk 0:01:00]}  Qg4 {[%clk 0:02:01]} 0-1


[Site "https://www.chess.com"]

[Event "Titled Tuesday Blitz March 21 Early 2023"]
[White "Bolourchifard, Farzad"]
[Black "Krzywda, Andrzej"]
[WhiteFideId "12510084"]
[BlackFideId "1114565"]
[WhiteElo "2317"]
[BlackElo "2155"]
[Result "1-0"]
[Round "01"]
[TimeControl "180+2"]
[Date "2023.03.21"]
[WhiteClock "0:01:39"]
[BlackClock "0:00:10"]

1. e4 {[%clk 0:02:59]}  c5 {[%clk 0:02:59]} 2. Nc3 {[%clk 0:02:59]}  d6 {[%clk 0:02:59]} 3. g3 {[%clk 0:02:59]}  g6 {[%clk 0:02:59]} 4. Bg2 {[%clk 0:03:00]}  Bg7 {[%clk 0:02:59]} 5. d3 {[%clk 0:03:01]}  Nc6 {[%clk 0:02:59]} 6. Be3 {[%clk 0:03:01]}  e5 {[%clk 0:02:56]} 7. Qd2 {[%clk 0:03:02]}  Nge7 {[%clk 0:02:56]} 8. Bh6 {[%clk 0:03:01]}  Bxh6 {[%clk 0:02:56]} 9. Qxh6 {[%clk 0:03:02]}  Be6 {[%clk 0:02:56]} 10. Qg7 {[%clk 0:03:02]}  Rg8 {[%clk 0:02:56]} 11. Qxh7 {[%clk 0:03:02]}  Nd4 {[%clk 0:02:56]} 12. O-O-O {[%clk 0:03:02]}  b5 {[%clk 0:02:56]} 13. Kb1 {[%clk 0:03:02]}  b4 {[%clk 0:02:56]} 14. Nce2 {[%clk 0:03:03]}  Nb5 {[%clk 0:02:52]} 15. Bh3 {[%clk 0:02:56]}  f5 {[%clk 0:02:11]} 16. Qh6 {[%clk 0:02:20]}  Qa5 {[%clk 0:02:06]} 17. b3 {[%clk 0:02:20]}  Nc3+ {[%clk 0:01:08]} 18. Nxc3 {[%clk 0:02:17]}  bxc3 {[%clk 0:01:09]} 19. Ne2 {[%clk 0:01:52]}  O-O-O {[%clk 0:00:43]} 20. exf5 {[%clk 0:01:49]}  Nxf5 {[%clk 0:00:38]} 21. Bxf5 {[%clk 0:01:47]}  Bxf5 {[%clk 0:00:37]} 22. Qh4 {[%clk 0:01:45]}  Qb4 {[%clk 0:00:28]} 23. Qc4 {[%clk 0:01:40]}  d5 {[%clk 0:00:22]} 24. Qxc3 {[%clk 0:01:40]}  Qxc3 {[%clk 0:00:18]} 25. Nxc3 {[%clk 0:01:40]}  Kc7 {[%clk 0:00:18]} 26. Rde1 {[%clk 0:01:39]}  Rge8 {[%clk 0:00:18]} 27. h4 {[%clk 0:01:37]}  Bg4 {[%clk 0:00:16]} 28. Nd1 {[%clk 0:01:37]}  Bf3 {[%clk 0:00:15]} 29. Rh2 {[%clk 0:01:37]}  d4 {[%clk 0:00:15]} 30. Nb2 {[%clk 0:01:37]}  Bd5 {[%clk 0:00:14]} 31. Nc4 {[%clk 0:01:37]}  Bxc4 {[%clk 0:00:14]} 32. bxc4 {[%clk 0:01:37]}  Rb8+ {[%clk 0:00:14]} 33. Kc1 {[%clk 0:01:38]}  Rb6 {[%clk 0:00:13]} 34. h5 {[%clk 0:01:38]}  gxh5 {[%clk 0:00:13]} 35. Rxh5 {[%clk 0:01:38]}  Reb8 {[%clk 0:00:13]} 36. Rh7+ {[%clk 0:01:36]}  Kd6 {[%clk 0:00:09]} 37. Rh6+ {[%clk 0:01:37]}  Kc7 {[%clk 0:00:09]} 38. Rxb6 {[%clk 0:01:37]}  Rxb6 {[%clk 0:00:09]} 39. Rxe5 {[%clk 0:01:38]}  Ra6 {[%clk 0:00:09]} 40. Rxc5+ {[%clk 0:01:38]}  Kb6 {[%clk 0:00:09]} 41. Rb5+ {[%clk 0:01:38]}  Kc6 {[%clk 0:00:10]} 42. Kb2 {[%clk 0:01:39]} 1-0


[Site "https://www.chess.com"]

[Event "Titled Tuesday Blitz March 21 Early 2023"]
[White "Melikhov, Evgeny V."]
[Black "Aradhya, Garg"]
[WhiteFideId "4122046"]
[BlackFideId "25006746"]
[WhiteElo "2158"]
[BlackElo "2263"]
[Result "0-1"]
[Round "01"]
[TimeControl "180+2"]
[Date "2023.03.21"]
[WhiteClock "0:00:01"]
[BlackClock "0:00:27"]

1. d4 {[%clk 0:02:59]}  d5 {[%clk 0:02:59]} 2. c4 {[%clk 0:02:57]}  c6 {[%clk 0:02:59]} 3. Nc3 {[%clk 0:02:57]}  Nf6 {[%clk 0:02:56]} 4. e3 {[%clk 0:02:57]}  Bf5 {[%clk 0:02:54]} 5. Nf3 {[%clk 0:02:56]}  e6 {[%clk 0:02:53]} 6. Nh4 {[%clk 0:02:56]}  Be4 {[%clk 0:02:53]} 7. f3 {[%clk 0:02:55]}  Bg6 {[%clk 0:02:53]} 8. Nxg6 {[%clk 0:02:52]}  hxg6 {[%clk 0:02:53]} 9. h3 {[%clk 0:02:21]}  Nbd7 {[%clk 0:02:46]} 10. f4 {[%clk 0:02:20]}  Bb4 {[%clk 0:02:35]} 11. Bd2 {[%clk 0:02:19]}  Bxc3 {[%clk 0:02:32]} 12. Bxc3 {[%clk 0:02:18]}  Ne4 {[%clk 0:02:33]} 13. Qg4 {[%clk 0:01:21]}  Rh6 {[%clk 0:02:14]} 14. Bd3 {[%clk 0:01:10]}  f5 {[%clk 0:02:11]} 15. Qf3 {[%clk 0:01:07]}  Qh4+ {[%clk 0:02:11]} 16. Kd1 {[%clk 0:01:07]}  Nf2+ {[%clk 0:02:10]} 17. Kc2 {[%clk 0:01:05]}  Nxh1 {[%clk 0:02:10]} 18. Rxh1 {[%clk 0:01:06]}  Qe7 {[%clk 0:01:51]} 19. a3 {[%clk 0:01:04]}  Nf6 {[%clk 0:01:49]} 20. Kb1 {[%clk 0:00:57]}  Ne4 {[%clk 0:01:48]} 21. Bxe4 {[%clk 0:00:53]}  dxe4 {[%clk 0:01:46]} 22. Qe2 {[%clk 0:00:50]}  O-O-O {[%clk 0:01:45]} 23. Rc1 {[%clk 0:00:47]}  Kb8 {[%clk 0:01:42]} 24. Qc2 {[%clk 0:00:38]}  g5 {[%clk 0:01:41]} 25. Qb3 {[%clk 0:00:32]}  gxf4 {[%clk 0:01:40]} 26. exf4 {[%clk 0:00:32]}  Rg6 {[%clk 0:01:38]} 27. Rc2 {[%clk 0:00:29]}  Ka8 {[%clk 0:01:34]} 28. Ka1 {[%clk 0:00:24]}  Qc7 {[%clk 0:01:32]} 29. d5 {[%clk 0:00:21]}  exd5 {[%clk 0:01:31]} 30. Be5 {[%clk 0:00:21]}  Qb6 {[%clk 0:01:31]} 31. Qxb6 {[%clk 0:00:17]}  axb6 {[%clk 0:01:32]} 32. cxd5 {[%clk 0:00:17]}  Rxd5 {[%clk 0:01:31]} 33. g4 {[%clk 0:00:15]}  fxg4 {[%clk 0:01:11]} 34. hxg4 {[%clk 0:00:16]}  Rxg4 {[%clk 0:01:11]} 35. Re2 {[%clk 0:00:16]}  g5 {[%clk 0:00:57]} 36. Rxe4 {[%clk 0:00:15]}  gxf4 {[%clk 0:00:57]} 37. Bc7 {[%clk 0:00:09]}  Ka7 {[%clk 0:00:36]} 38. Rxf4 {[%clk 0:00:03]}  Rxf4 {[%clk 0:00:36]} 39. Bxf4 {[%clk 0:00:03]}  b5 {[%clk 0:00:36]} 40. Be3+ {[%clk 0:00:02]}  b6 {[%clk 0:00:36]} 41. Bf4 {[%clk 0:00:02]}  Kb7 {[%clk 0:00:36]} 42. Ka2 {[%clk 0:00:03]}  Rd1 {[%clk 0:00:35]} 43. Kb3 {[%clk 0:00:03]}  c5 {[%clk 0:00:35]} 44. Kc2 {[%clk 0:00:03]}  Rf1 {[%clk 0:00:35]} 45. Bg5 {[%clk 0:00:03]}  Kc6 {[%clk 0:00:36]} 46. Kc3 {[%clk 0:00:03]}  Rf3+ {[%clk 0:00:35]} 47. Kc2 {[%clk 0:00:03]}  Rg3 {[%clk 0:00:32]} 48. Bf6 {[%clk 0:00:03]}  Rg6 {[%clk 0:00:31]} 49. Bd8 {[%clk 0:00:03]}  Kd5 {[%clk 0:00:32]} 50. Be7 {[%clk 0:00:03]}  Kc4 {[%clk 0:00:28]} 51. b3+ {[%clk 0:00:03]}  Kd5 {[%clk 0:00:28]} 52. Bf8 {[%clk 0:00:03]}  c4 {[%clk 0:00:29]} 53. bxc4+ {[%clk 0:00:01]}  bxc4 {[%clk 0:00:30]} 54. Bb4 {[%clk 0:00:01]}  Rg2+ {[%clk 0:00:29]} 55. Kd1 {[%clk 0:00:01]}  Kd4 {[%clk 0:00:28]} 56. Kc1 {[%clk 0:00:01]}  c3 {[%clk 0:00:27]} 0-1


[Site "https://www.chess.com"]

[Event "Titled Tuesday Blitz March 21 Early 2023"]
[White "Weetik, Vjacheslav"]
[Black "Liu, Yi"]
[WhiteFideId "4153472"]
[BlackFideId "3210588"]
[WhiteElo "2469"]
[BlackElo "2264"]
[Result "1-0"]
[Round "01"]
[TimeControl "180+2"]
[Date "2023.03.21"]
[WhiteClock "0:00:57"]
[BlackClock "0:00:39"]

1. d4 {[%clk 0:02:59]}  Nf6 {[%clk 0:02:59]} 2. c4 {[%clk 0:02:58]}  e6 {[%clk 0:02:59]} 3. g3 {[%clk 0:02:59]}  d5 {[%clk 0:02:59]} 4. Nf3 {[%clk 0:02:58]}  c6 {[%clk 0:02:59]} 5. Bg2 {[%clk 0:02:57]}  Be7 {[%clk 0:02:59]} 6. O-O {[%clk 0:02:57]}  O-O {[%clk 0:02:59]} 7. Nc3 {[%clk 0:02:56]}  Nbd7 {[%clk 0:03:00]} 8. Qd3 {[%clk 0:02:56]}  b6 {[%clk 0:02:59]} 9. e4 {[%clk 0:02:56]}  dxe4 {[%clk 0:02:56]} 10. Nxe4 {[%clk 0:02:55]}  Bb7 {[%clk 0:02:56]} 11. Bf4 {[%clk 0:02:37]}  c5 {[%clk 0:02:48]} 12. Nxf6+ {[%clk 0:02:31]}  Nxf6 {[%clk 0:02:44]} 13. Rad1 {[%clk 0:02:29]}  Be4 {[%clk 0:02:39]} 14. Qe2 {[%clk 0:02:28]}  Qc8 {[%clk 0:02:27]} 15. d5 {[%clk 0:02:11]}  exd5 {[%clk 0:02:18]} 16. cxd5 {[%clk 0:02:11]}  Qd7 {[%clk 0:01:37]} 17. d6 {[%clk 0:01:52]}  Bd8 {[%clk 0:01:34]} 18. Rfe1 {[%clk 0:01:18]}  Re8 {[%clk 0:01:26]} 19. Ne5 {[%clk 0:01:14]}  Rxe5 {[%clk 0:01:11]} 20. Bxe5 {[%clk 0:01:14]}  Bxg2 {[%clk 0:01:12]} 21. Kxg2 {[%clk 0:01:13]}  Qc6+ {[%clk 0:01:08]} 22. Qf3 {[%clk 0:01:10]}  Qxf3+ {[%clk 0:01:02]} 23. Kxf3 {[%clk 0:01:11]}  Kf8 {[%clk 0:01:00]} 24. d7 {[%clk 0:01:04]}  Be7 {[%clk 0:00:50]} 25. Bc7 {[%clk 0:00:58]}  Bd8 {[%clk 0:00:42]} 26. Bd6+ {[%clk 0:00:58]}  Kg8 {[%clk 0:00:38]} 27. Re8+ {[%clk 0:00:57]}  Nxe8 {[%clk 0:00:39]} 28. dxe8=Q# {[%clk 0:00:57]} 1-0


[Site "https://www.chess.com"]

[Event "Titled Tuesday Blitz March 21 Early 2023"]
[White "Fernandez Siles, Luis"]
[Black "Manukyan, Sargis A."]
[WhiteFideId "2209420"]
[BlackFideId "13303970"]
[WhiteElo "2186"]
[BlackElo "2187"]
[Result "0-1"]
[Round "01"]
[TimeControl "180+2"]
[Date "2023.03.21"]
[WhiteClock "0:00:10"]
[BlackClock "0:00:53"]

1. d4 {[%clk 0:03:00]}  d5 {[%clk 0:02:58]} 2. c4 {[%clk 0:02:59]}  e6 {[%clk 0:02:56]} 3. Nc3 {[%clk 0:02:59]}  Nf6 {[%clk 0:02:56]} 4. cxd5 {[%clk 0:02:57]}  exd5 {[%clk 0:02:55]} 5. Bg5 {[%clk 0:02:57]}  Be7 {[%clk 0:02:54]} 6. e3 {[%clk 0:02:58]}  O-O {[%clk 0:02:53]} 7. Qc2 {[%clk 0:02:58]}  c6 {[%clk 0:02:52]} 8. Bd3 {[%clk 0:02:57]}  Nbd7 {[%clk 0:02:52]} 9. Nf3 {[%clk 0:02:54]}  Re8 {[%clk 0:02:53]} 10. O-O {[%clk 0:02:54]}  Nf8 {[%clk 0:02:53]} 11. h3 {[%clk 0:02:54]}  h6 {[%clk 0:02:51]} 12. Bxf6 {[%clk 0:02:44]}  Bxf6 {[%clk 0:02:51]} 13. b4 {[%clk 0:02:45]}  a6 {[%clk 0:02:50]} 14. a4 {[%clk 0:02:44]}  Ne6 {[%clk 0:02:46]} 15. b5 {[%clk 0:02:37]}  axb5 {[%clk 0:02:44]} 16. axb5 {[%clk 0:02:36]}  Rxa1 {[%clk 0:02:45]} 17. Rxa1 {[%clk 0:02:36]}  Ng5 {[%clk 0:02:46]} 18. Nxg5 {[%clk 0:02:30]}  hxg5 {[%clk 0:02:47]} 19. bxc6 {[%clk 0:02:28]}  bxc6 {[%clk 0:02:46]} 20. Bh7+ {[%clk 0:02:20]}  Kf8 {[%clk 0:02:41]} 21. Bf5 {[%clk 0:02:21]}  Qd6 {[%clk 0:02:21]} 22. Ra7 {[%clk 0:01:50]}  Bxd4 {[%clk 0:02:07]} 23. Bxc8 {[%clk 0:01:42]}  Bxa7 {[%clk 0:02:07]} 24. Bf5 {[%clk 0:01:27]}  g6 {[%clk 0:02:05]} 25. Bd3 {[%clk 0:01:27]}  Bb8 {[%clk 0:02:03]} 26. g3 {[%clk 0:01:25]}  d4 {[%clk 0:01:55]} 27. Ne4 {[%clk 0:01:23]}  Rxe4 {[%clk 0:01:48]} 28. Bxe4 {[%clk 0:01:20]}  dxe3 {[%clk 0:01:49]} 29. g4 {[%clk 0:00:39]}  Qh2+ {[%clk 0:01:40]} 30. Kf1 {[%clk 0:00:38]}  Qxh3+ {[%clk 0:01:35]} 31. Bg2 {[%clk 0:00:39]}  Qxg4 {[%clk 0:01:35]} 32. Qc5+ {[%clk 0:00:25]}  Kg7 {[%clk 0:01:33]} 33. Qc3+ {[%clk 0:00:24]}  Kg8 {[%clk 0:01:30]} 34. Qxe3 {[%clk 0:00:23]}  Bf4 {[%clk 0:01:26]} 35. Qe8+ {[%clk 0:00:19]}  Kg7 {[%clk 0:01:27]} 36. Bxc6 {[%clk 0:00:19]}  Qh3+ {[%clk 0:01:27]} 37. Ke2 {[%clk 0:00:19]}  Qg4+ {[%clk 0:01:26]} 38. Bf3 {[%clk 0:00:19]}  Qf5 {[%clk 0:01:25]} 39. Qe4 {[%clk 0:00:19]}  Qb5+ {[%clk 0:01:24]} 40. Qd3 {[%clk 0:00:19]}  Qb2+ {[%clk 0:01:25]} 41. Kf1 {[%clk 0:00:19]}  Be5 {[%clk 0:01:22]} 42. Bd5 {[%clk 0:00:18]}  Bd4 {[%clk 0:01:19]} 43. Qf3 {[%clk 0:00:18]}  f5 {[%clk 0:01:20]} 44. Kg2 {[%clk 0:00:18]}  Qd2 {[%clk 0:01:17]} 45. Ba8 {[%clk 0:00:17]}  g4 {[%clk 0:01:16]} 46. Qg3 {[%clk 0:00:17]}  Kh6 {[%clk 0:01:12]} 47. Qh4+ {[%clk 0:00:17]}  Kg7 {[%clk 0:01:11]} 48. Qe7+ {[%clk 0:00:17]}  Kg8 {[%clk 0:01:10]} 49. Qe8+ {[%clk 0:00:17]}  Kh7 {[%clk 0:01:11]} 50. Qe7+ {[%clk 0:00:16]}  Bg7 {[%clk 0:01:11]} 51. Qh4+ {[%clk 0:00:13]}  Kg8 {[%clk 0:01:10]} 52. Qd8+ {[%clk 0:00:10]}  Qxd8 {[%clk 0:00:53]} 0-1


[Site "https://www.chess.com"]

[Event "Titled Tuesday Blitz March 21 Early 2023"]
[White "Guzman Moneo, Alberto"]
[Black "Parkhov, Yair"]
[WhiteFideId "2209616"]
[BlackFideId "2813408"]
[WhiteElo "2157"]
[BlackElo "2421"]
[Result "0-1"]
[Round "01"]
[TimeControl "180+2"]
[Date "2023.03.21"]
[WhiteClock "0:01:57"]
[BlackClock "0:01:16"]

1. e4 {[%clk 0:02:56]}  e5 {[%clk 0:02:54]} 2. Nf3 {[%clk 0:02:56]}  Nc6 {[%clk 0:02:54]} 3. d4 {[%clk 0:02:55]}  exd4 {[%clk 0:02:51]} 4. Nxd4 {[%clk 0:02:56]}  Nf6 {[%clk 0:02:46]} 5. Nxc6 {[%clk 0:02:55]}  bxc6 {[%clk 0:02:46]} 6. e5 {[%clk 0:02:56]}  Qe7 {[%clk 0:02:46]} 7. Qe2 {[%clk 0:02:56]}  Nd5 {[%clk 0:02:46]} 8. c4 {[%clk 0:02:57]}  Ba6 {[%clk 0:02:46]} 9. b3 {[%clk 0:02:56]}  Qh4 {[%clk 0:02:32]} 10. a3 {[%clk 0:02:54]}  Bc5 {[%clk 0:02:26]} 11. g3 {[%clk 0:02:54]}  Qe7 {[%clk 0:02:08]} 12. Qe4 {[%clk 0:02:44]}  f5 {[%clk 0:01:57]} 13. Qe2 {[%clk 0:02:28]}  O-O {[%clk 0:01:42]} 14. Bb2 {[%clk 0:02:24]}  f4 {[%clk 0:01:31]} 15. g4 {[%clk 0:02:15]}  f3 {[%clk 0:01:28]} 16. Qe4 {[%clk 0:02:15]}  Rf4 {[%clk 0:01:22]} 17. Qd3 {[%clk 0:02:09]}  Bxf2+ {[%clk 0:01:17]} 18. Kxf2 {[%clk 0:02:06]}  Qh4+ {[%clk 0:01:17]} 19. Kg1 {[%clk 0:01:59]}  Rxg4+ {[%clk 0:01:15]} 20. Bg2 {[%clk 0:01:57]}  Qe1+ {[%clk 0:01:15]} 21. Qf1 {[%clk 0:01:57]}  f2# {[%clk 0:01:16]} 0-1


[Site "https://www.chess.com"]

[Event "Titled Tuesday Blitz March 21 Early 2023"]
[White "Krysa, Leandro"]
[Black "Bhavikatti, Neil"]
[WhiteFideId "116807"]
[BlackFideId "30935024"]
[WhiteElo "2485"]
[BlackElo "2348"]
[Result "1-0"]
[Round "01"]
[TimeControl "180+2"]
[Date "2023.03.21"]
[WhiteClock "0:00:04"]
[BlackClock "0:00:03"]

1. e4 {[%clk 0:02:59]}  e5 {[%clk 0:02:58]} 2. Nf3 {[%clk 0:02:59]}  Nc6 {[%clk 0:02:55]} 3. d4 {[%clk 0:02:58]}  exd4 {[%clk 0:02:54]} 4. Nxd4 {[%clk 0:02:59]}  Nf6 {[%clk 0:02:55]} 5. Nxc6 {[%clk 0:02:59]}  bxc6 {[%clk 0:02:56]} 6. e5 {[%clk 0:02:59]}  Qe7 {[%clk 0:02:56]} 7. Qe2 {[%clk 0:02:59]}  Nd5 {[%clk 0:02:57]} 8. Nd2 {[%clk 0:03:00]}  g6 {[%clk 0:02:50]} 9. c4 {[%clk 0:02:52]}  Ba6 {[%clk 0:02:50]} 10. b3 {[%clk 0:02:47]}  Bg7 {[%clk 0:02:48]} 11. Bb2 {[%clk 0:02:44]}  O-O-O {[%clk 0:02:39]} 12. O-O-O {[%clk 0:02:39]}  Nb6 {[%clk 0:02:09]} 13. g3 {[%clk 0:02:19]}  Rhe8 {[%clk 0:02:01]} 14. f4 {[%clk 0:02:16]}  Kb8 {[%clk 0:01:48]} 15. Qf3 {[%clk 0:02:00]}  f6 {[%clk 0:01:42]} 16. exf6 {[%clk 0:01:53]}  Bxf6 {[%clk 0:01:42]} 17. Bh3 {[%clk 0:01:39]}  Bxb2+ {[%clk 0:01:36]} 18. Kxb2 {[%clk 0:01:40]}  Qf6+ {[%clk 0:01:35]} 19. Qc3 {[%clk 0:01:38]}  Qxc3+ {[%clk 0:01:34]} 20. Kxc3 {[%clk 0:01:38]}  d5 {[%clk 0:01:32]} 21. Rhe1 {[%clk 0:01:23]}  d4+ {[%clk 0:01:25]} 22. Kc2 {[%clk 0:01:18]}  Rxe1 {[%clk 0:01:19]} 23. Rxe1 {[%clk 0:01:18]}  Bc8 {[%clk 0:01:10]} 24. Bxc8 {[%clk 0:01:17]}  Nxc8 {[%clk 0:01:10]} 25. Re6 {[%clk 0:01:12]}  Kb7 {[%clk 0:01:03]} 26. Ne4 {[%clk 0:01:12]}  Nd6 {[%clk 0:00:52]} 27. Nxd6+ {[%clk 0:01:04]}  Rxd6 {[%clk 0:00:51]} 28. Re7 {[%clk 0:00:59]}  h6 {[%clk 0:00:48]} 29. Kd3 {[%clk 0:00:58]}  c5 {[%clk 0:00:41]} 30. h4 {[%clk 0:00:46]}  h5 {[%clk 0:00:35]} 31. Re5 {[%clk 0:00:38]}  Kb6 {[%clk 0:00:33]} 32. Re8 {[%clk 0:00:28]}  a5 {[%clk 0:00:32]} 33. Re7 {[%clk 0:00:22]}  a4 {[%clk 0:00:29]} 34. bxa4 {[%clk 0:00:22]}  Rc6 {[%clk 0:00:14]} 35. Re5 {[%clk 0:00:17]}  Ka5 {[%clk 0:00:13]} 36. f5 {[%clk 0:00:17]}  gxf5 {[%clk 0:00:13]} 37. Rxf5 {[%clk 0:00:17]}  Kxa4 {[%clk 0:00:13]} 38. Rxh5 {[%clk 0:00:16]}  Kb4 {[%clk 0:00:13]} 39. Rh8 {[%clk 0:00:12]}  Re6 {[%clk 0:00:08]} 40. Rb8+ {[%clk 0:00:08]}  Ka3 {[%clk 0:00:08]} 41. Rg8 {[%clk 0:00:06]}  Re3+ {[%clk 0:00:07]} 42. Kd2 {[%clk 0:00:06]}  Kb4 {[%clk 0:00:08]} 43. h5 {[%clk 0:00:07]}  Kxc4 {[%clk 0:00:08]} 44. h6 {[%clk 0:00:06]}  Re7 {[%clk 0:00:05]} 45. Rg7 {[%clk 0:00:05]}  Re6 {[%clk 0:00:05]} 46. h7 {[%clk 0:00:04]}  Rh6 {[%clk 0:00:05]} 47. g4 {[%clk 0:00:04]}  Rh2+ {[%clk 0:00:05]} 48. Ke1 {[%clk 0:00:04]}  d3 {[%clk 0:00:06]} 49. g5 {[%clk 0:00:03]}  Kc3 {[%clk 0:00:06]} 50. Rd7 {[%clk 0:00:03]}  d2+ {[%clk 0:00:06]} 51. Rxd2 {[%clk 0:00:02]}  Rxh7 {[%clk 0:00:06]} 52. Rg2 {[%clk 0:00:03]}  Rg7 {[%clk 0:00:06]} 53. g6 {[%clk 0:00:03]}  c4 {[%clk 0:00:05]} 54. Kd1 {[%clk 0:00:03]}  Kd3 {[%clk 0:00:06]} 55. Kc1 {[%clk 0:00:03]}  c3 {[%clk 0:00:06]} 56. Rg3+ {[%clk 0:00:03]}  Kc4 {[%clk 0:00:06]} 57. Kc2 {[%clk 0:00:04]}  Kd4 {[%clk 0:00:06]} 58. Rg4+ {[%clk 0:00:04]}  Kc5 {[%clk 0:00:07]} 59. Kxc3 {[%clk 0:00:05]}  c6 {[%clk 0:00:06]} 60. Rg5+ {[%clk 0:00:05]}  Kb6 {[%clk 0:00:05]} 61. Kc4 {[%clk 0:00:06]}  c5 {[%clk 0:00:05]} 62. a4 {[%clk 0:00:04]}  Ka5 {[%clk 0:00:04]} 63. Kxc5 {[%clk 0:00:04]}  Kxa4 {[%clk 0:00:04]} 64. Kd6 {[%clk 0:00:04]}  Rg8 {[%clk 0:00:03]} 65. Ke7 {[%clk 0:00:04]} 1-0


[Site "https://www.chess.com"]